[Event "4NCL 2022-2023"]
[Site "Daventry"]
[Date "2023.01.14"]
[Round "3.43"]
[White "Harvey, Marcus R"]
[Black "Weller, Jean-Luc"]
[Result "1-0"]
[ECO "A03"]
[WhiteElo "2466"]
[BlackElo "2233"]
[Annotator "TA"]
[PlyCount "89"]
[EventDate "2022.10.20"]
[EventType "team-tourn"]
[EventCountry "ENG"]
[SourceTitle "playchess.com"]
[Source "ChessBase"]
[SourceQuality "1"]
[TimeControl "40/6000+30:2400+30"]

{[%evp 9,89,10,64,0,8,-38,-5,-35,0,-12,0,-14,0,0,0,13,3,0,24,19,22,0,12,8,18,0,58,50,51,37,39,33,27,15,15,0,0,0,0,0,0,-16,-36,-56,-17,-28,-31,-30,0,0,43,33,30,32,37,32,69,69,70,69,58,47,40,23,25,25,45,45,53,45,45,45,38,20,44,44,85,79,92,74,1307,1262]} 1. f4 {[%emt 0:23:40]} d5 {[%emt 0:06:46]} 2. Nf3 {[%emt 0:00:27]} Bg4 {[%emt 0:06:14]} 3. e3 {[%emt 0:00:21]} Nd7 {[%emt 0:00:50]} 4. h3 {[%emt 0:00:09]} Bxf3 {[%emt 0:01:22]} 5. Qxf3 {[%emt 0:00:03]} e5 {[%emt 0:02:48]} (5... c6 $11) 6. Nc3 {[%emt 0:14:21] A03: Bird's Opening with 1...d5.} ({White should play} 6. Qxd5 $14 c6 7. Qf3) 6... c6 $11 {[%emt 0:06:19] [#]} 7. g3 $146 {[%emt 0:12:43]} (7. d3 $11 {is more appropriate.}) ({Predecessor:} 7. b3 Ngf6 8. Bb2 Bd6 9. g3 Qe7 10. Be2 O-O-O 11. fxe5 Nxe5 12. Qf2 Kb8 13. O-O-O {1-0 Nijboer,F (2545)-Pijpers,A (2476) Amsterdam Batavia Grolsch blitz 8th 2016 (2)}) 7... Bd6 {[%emt 0:03:12]} 8. Bg2 {[%emt 0:00:58] The position is equal.} Qc7 {[%emt 0:07:03]} 9. d3 {[%emt 0:01:25]} (9. e4 $5 {[%cal Re4d5]}) 9... O-O-O {[%emt 0:09:11]} 10. Bd2 {[%emt 0:01:40]} exf4 {[%emt 0:18:56]} 11. exf4 {[%emt 0:01:07]} Ne7 {[%emt 0:00:41]} 12. O-O-O {[%emt 0:01:12]} Nf5 {[%emt 0:01:44]} 13. Rde1 {[%emt 0:02:11]} Bb4 {[%emt 0:09:45]} 14. a3 {[%emt 0:00:35]} Ba5 {[%emt 0:00:30]} 15. g4 {[%emt 0:09:12]} (15. h4 $5 {[%cal Rg2h3]}) 15... Nh4 {[%emt 0:00:46]} (15... d4 $5 16. gxf5 dxc3 17. bxc3 (17. Bxc3 Bxc3 18. bxc3 Qa5 $11) 17... Nc5 $11) 16. Qf2 {[%emt 0:00:02]} Nxg2 {[%emt 0:00:11]} 17. Qxg2 {[%emt 0:00:01]} Bxc3 {[%emt 0:04:56]} (17... d4 $11 18. Ne4 Bxd2+ 19. Nxd2 (19. Qxd2 Nb6 $11) 19... Nf6) 18. Bxc3 $14 {[%emt 0:01:42]} Qxf4+ {[%emt 0:00:32]} 19. Kb1 {[%emt 0:00:36] Black must now prevent Rhf1.} f6 $1 {[%emt 0:03:17]} 20. Rhf1 {[%emt 0:04:50][%mdl 1024] White has compensation.} Qd6 {[%emt 0:01:10]} 21. Qf2 {[%emt 0:02:10]} b6 {[%emt 0:04:45]} 22. Qe3 {[%emt 0:00:35]} Nc5 {[%emt 0:03:16][%cal Bd7c5,Bc5a6,Ba6c7][%mdl 32]} 23. Bb4 {[%emt 0:04:02] [#] Threatens to win with d4.} d4 {[%emt 0:01:08]} 24. Qf3 {[%emt 0:02:01]} Qd5 {[%emt 0:04:12]} 25. Qe2 {[%emt 0:05:43]} Na6 {[%emt 0:03:19]} 26. Bd2 {[%emt 0:01:38]} Nc7 {[%emt 0:00:41]} 27. g5 $1 {[%emt 0:01:49]} f5 {[%emt 0:01:57] Wards off Qg4} 28. Qf2 $1 {[%emt 0:06:36]} Rhf8 {[%emt 0:02:44]} 29. Qh4 {[%emt 0:00:39]} g6 {[%emt 0:01:44]} (29... Qg8 $5) 30. Qxh7 {[%emt 0:00:32]} Qf7 {[%emt 0:00:16]} 31. Re7 {[%emt 0:02:34][%cal Be1e7,Be7h7,Bh7h6][%mdl 32]} Qxh7 {[%emt 0:00:10]} 32. Rxh7 {[%emt 0:00:02]} Rh8 {[%emt 0:01:52]} 33. Rh6 {[%emt 0:00:05] White has more active pieces.} Rhg8 {[%emt 0:00:05]} 34. h4 {[%emt 0:01:09]} Nd5 {[%emt 0:03:38]} 35. h5 {[%emt 0:02:30]} Ne3 {[%emt 0:00:03]} 36. Rf3 {[%emt 0:01:08]} gxh5 {[%emt 0:00:47]} 37. Rxh5 {[%emt 0:01:28]} Rde8 {[%emt 0:01:24]} 38. c3 {[%emt 0:00:21]} c5 {[%emt 0:00:35]} 39. cxd4 {[%emt 0:00:31]} cxd4 {[%emt 0:00:01]} 40. Rf4 {[%emt 0:00:54]} Rd8 {[%emt 0:00:27]} 41. Ka2 {[%emt 0:45:47]} Rd5 {[%emt 0:09:56]} 42. Rf3 {[%emt 0:00:00]} Ng4 {[%emt 0:01:08]} 43. Rh7 {[%emt 0:00:00]} a5 {[%emt 0:07:48]} 44. Ra7 {[%emt 0:00:00]} Rg6 $2 {[%emt 0:06:32][%mdl 8192] [#]} (44... Rgd8 $16) 45. Rh3 {[%emt 0:00:00] Weighted Error Value: White=0.09 (flawless) /Black=0.15 (very precise)} 1-0

[Event "4NCL 2022-2023"]
[Site "Daventry"]
[Date "2023.01.14"]
[Round "3.44"]
[White "Chan, Sheng Liang Bernard"]
[Black "Fitzsimons, David"]
[Result "1-0"]
[ECO "B06"]
[WhiteElo "1986"]
[BlackElo "2339"]
[Annotator "TA"]
[PlyCount "77"]
[EventDate "2022.10.20"]
[EventType "team-tourn"]
[EventCountry "ENG"]
[SourceTitle "playchess.com"]
[Source "ChessBase"]
[SourceQuality "1"]
[TimeControl "40/6000+30:2400+30"]

{[%evp 11,77,-8,21,23,26,-9,0,-11,0,-77,-71,-126,-123,-110,-112,-99,-48,-33,-62,-51,-25,0,20,0,0,-50,-51,-45,-26,-47,-31,-35,16,0,-4,-51,-22,-20,-12,-43,-41,-68,-23,-28,-26,-26,62,66,93,100,96,107,126,146,424,147,708,652,1112,1104,1002,1075,1012,1012,29990,29991,29991,29992]} 1. d4 {[%emt 0:00:14]} g6 {[%emt 0:00:50]} 2. e4 {[%emt 0:04:24]} Bg7 {[%emt 0:00:07]} 3. f4 {[%emt 0:00:33]} c5 {[%emt 0:00:28]} 4. c3 {[%emt 0:04:36]} cxd4 {[%emt 0:00:15]} 5. cxd4 {[%emt 0:00:02]} d5 {[%emt 0:00:33]} 6. e5 {[%emt 0:01:33]} Nc6 {[%emt 0:00:10]} 7. Nc3 {[%emt 0:01:15] B06: Modern Defence.} Nh6 {[%emt 0:00:56]} 8. Be3 {[%emt 0:02:17]} O-O {[%emt 0:01:15]} 9. Be2 {[%emt 0:06:38] The position is equal.} f6 {[%emt 0:05:44][%cal Rf6e5]} 10. Bf3 {[%emt 0:08:39]} (10. Nf3 $11) 10... e6 $17 {[%emt 0:00:42][%cal Rf6e5] [#] White must now prevent ...fxe5.} 11. Nge2 $146 {[%emt 0:01:01]} (11. exf6 $142 Bxf6 12. Qd2) ({Predecessor:} 11. Bf2 fxe5 12. fxe5 Nf5 13. Nge2 Nh4 14. Bxh4 Qxh4+ 15. Kf1 Bh6 16. Qe1 Qg5 17. Rd1 {0-1 Movilla Calleja,D (1890)-Bermejo,L (2167) Collado Villalba op-A 32nd 2015 (1)}) 11... Nf5 {[%emt 0:02:51]} 12. Bf2 {[%emt 0:01:03]} fxe5 {[%emt 0:00:15]} 13. dxe5 {[%emt 0:04:36] [#]} Nh4 {[%emt 0:01:10]} (13... g5 $1 $17 {...gxf4 is the strong threat.} 14. O-O (14. g4 $2 Nfe7 $19) 14... gxf4 15. Nxf4 Nxe5) 14. Bxh4 $15 {[%emt 0:02:45]} Qxh4+ {[%emt 0:00:21]} 15. g3 {[%emt 0:00:05]} Qh3 {[%emt 0:00:36] And now ...Nxe5 would win.} (15... Qe7 $5 {[%cal Rc6e5]} 16. O-O g5 $15) 16. Ng1 $1 $36 {[%emt 0:11:27][%mdl 2048] White fights for an advantage.} Qf5 {[%emt 0:01:10]} 17. Bg4 {[%emt 0:00:34]} Qf7 {[%emt 0:00:07][%cal Oc6e5]} 18. Nf3 {[%emt 0:01:35] [#]} ({Better is} 18. Nh3 $11) 18... Bxe5 $1 {[%emt 0:06:18]} 19. O-O {[%emt 0:03:58]} (19. fxe5 Nxe5 20. O-O Nxg4 $17) 19... Bf6 {[%emt 0:02:55]} 20. Re1 {[%emt 0:05:03]} Bd7 {[%emt 0:05:44]} 21. Nb5 {[%emt 0:01:56]} Bd8 {[%emt 0:18:47]} (21... Rad8 $15) 22. Kg2 {[%emt 0:04:06][%mdl 1024] White has compensation.} (22. Kh1 $5 {[%cal Ra1c1]}) 22... Qf6 {[%emt 0:11:57]} 23. Qe2 {[%emt 0:03:32]} (23. Nbd4 $11 {feels stronger.}) 23... a6 {[%emt 0:01:53]} 24. Nc3 {[%emt 0:01:57]} Re8 {[%emt 0:01:06]} 25. Rad1 {[%emt 0:01:30] Wards off Nd4} Ba5 {[%emt 0:02:41]} 26. Qd3 {[%emt 0:13:48]} Nb4 {[%emt 0:10:14]} 27. Qd2 {[%emt 0:00:06] Threatens to win with a3.} Rad8 {[%emt 0:05:25]} 28. a3 {[%emt 0:04:57]} Nc6 {[%emt 0:00:17]} (28... Na2 $1 $11 29. Re3 (29. Nxd5 exd5 30. Rxe8+ Rxe8 $17) 29... Nxc3 30. bxc3 Rc8) 29. b4 $1 $14 {[%emt 0:02:07] White is more active.} Bc7 {[%emt 0:13:12] [#]} 30. Nxd5 $1 {[%emt 0:00:54]} exd5 {[%emt 0:00:06]} 31. Qxd5+ {[%emt 0:00:05]} Be6 {[%emt 0:01:43]} 32. Bxe6+ {[%emt 0:00:07]} (32. Rxe6 $2 {is the wrong capture.} Rxd5 33. Rxe8+ Kf7 $19) 32... Rxe6 $2 {[%emt 0:00:14][%mdl 8192]} (32... Kg7 $16 33. Bd7 Rxe1 34. Rxe1 Ne7) 33. Qa2 $2 {[%emt 0:01:41]} (33. Qc4 $18 {is more deadly.} b5 34. Qb3) 33... Be5 $2 {[%emt 0:16:00][%mdl 8192] This move loses the game for Black.} (33... Rde8 $16) 34. Rxe5 $18 {[%emt 0:01:59][%mdl 64] Overworked Piece} ({Weaker is} 34. Nxe5 Rxd1 35. Rxd1 Nxe5 $16) 34... Nxe5 {[%emt 0:00:54]} 35. Rxd8+ {[%emt 0:00:09][%mdl 64] Deflection} Qxd8 {[%emt 0:00:22]} 36. Qxe6+ {[%emt 0:00:06]} Nf7 {[%emt 0:00:04]} 37. Ng5 {[%emt 0:00:51]} Qc7 {[%emt 0:00:31]} 38. Qe8+ {[%emt 0:00:23]} Kg7 {[%emt 0:00:04]} 39. Ne6+ {[%emt 0:00:05] Weighted Error Value: White=0.29 (precise) /Black=0.54} 1-0

[Event "4NCL 2022-2023"]
[Site "Daventry"]
[Date "2023.01.14"]
[Round "3.45"]
[White "Greet, Andrew N"]
[Black "Walton, Alan J"]
[Result "1-0"]
[ECO "A96"]
[WhiteElo "2404"]
[BlackElo "2082"]
[Annotator "TA"]
[PlyCount "51"]
[EventDate "2022.10.20"]
[EventType "team-tourn"]
[EventCountry "ENG"]
[SourceTitle "playchess.com"]
[Source "ChessBase"]
[SourceQuality "1"]
[TimeControl "40/6000+30:2400+30"]

{[%evp 13,51,44,60,59,67,57,56,56,106,115,122,92,89,66,56,56,62,51,80,79,86,86,82,80,122,65,92,106,107,118,165,170,141,99,168,141,208,176,29991,29992]} 1. c4 {[%emt 0:00:06]} f5 {[%emt 0:00:38]} 2. Nf3 {[%emt 0:00:15]} Nf6 {[%emt 0:00:19]} 3. g3 {[%emt 0:00:23]} d6 {[%emt 0:00:34]} 4. d4 {[%emt 0:00:11]} e6 {[%emt 0:01:03]} 5. Bg2 {[%emt 0:00:09]} Be7 {[%emt 0:00:28]} 6. O-O {[%emt 0:00:11]} O-O {[%emt 0:00:10]} 7. Nc3 {[%emt 0:00:08]} Ne4 {[%emt 0:00:58]} 8. Nxe4 {[%emt 0:00:19] A96: Classical Dutch: Fluid Systems: Early deviations.} fxe4 {[%emt 0:00:05]} 9. Nd2 {[%emt 0:00:08]} d5 {[%emt 0:00:14]} 10. f3 {[%emt 0:00:14] White is slightly better.} c5 {[%emt 0:02:58]} (10... Bf6 $14) 11. fxe4 $16 {[%emt 0:02:44]} Rxf1+ {[%emt 0:01:49]} 12. Kxf1 {[%emt 0:11:10][%cal Re4d5] [#]} dxe4 $146 {[%emt 0:08:06]} ({Predecessor:} 12... dxc4 13. Nxc4 cxd4 14. e5 Nc6 15. e3 d3 16. Be4 Qc7 17. Bxd3 Nxe5 18. Bxh7+ Kxh7 {½-½ Parks,J (1891)-Ward,A (1787) SCO-ch 124th 2017 (7)}) 13. Nxe4 {[%emt 0:00:40]} cxd4 {[%emt 0:05:08]} 14. e3 {[%emt 0:02:03]} e5 {[%emt 0:08:42]} 15. exd4 {[%emt 0:01:33]} exd4 {[%emt 0:02:09]} 16. Qb3 {[%emt 0:05:15][%cal Oc1g5] Hoping for Bg5!} Nc6 {[%emt 0:14:32]} 17. c5+ {[%emt 0:00:38]} Kh8 {[%emt 0:00:54]} 18. Bf4 {[%emt 0:00:26]} Qf8 {[%emt 0:03:02] [#] aiming for ...g5.} 19. Qd5 {[%emt 0:14:18] White has more active pieces.} ({Better is} 19. Kg1 $16) 19... Bf5 {[%emt 0:04:13] Threatens to win with ...Bxe4.} 20. Kg1 {[%emt 0:02:57]} Bxe4 {[%emt 0:00:39]} 21. Bxe4 {[%emt 0:00:35]} Rd8 {[%emt 0:04:02] Black is weak on the light squares} (21... d3 $16 {might work better.}) 22. Qh5 $18 {[%emt 0:01:29][%csl Ge4][%cal Rh5h7]} Qg8 {[%emt 0:00:04]} 23. Re1 {[%emt 0:04:00] Bxc6 is the strong threat.} Bf6 {[%emt 0:00:28]} (23... Bf8 $16) 24. Bd6 {[%emt 0:03:31] Strongly threatening Bd5. A strong pair of Bishops.} Re8 {[%emt 0:05:17]} (24... d3 $16) 25. Kg2 {[%emt 0:07:40][%cal Oe4h7] Bxh7! would kill now.} d3 $2 {[%emt 0:05:15] [#]} (25... g6 $18 26. Qf3 Qg7) 26. Bxh7 $1 {[%emt 0:01:45][%mdl 576] Deflection, Back Rank.   Weighted Error Value: White=0.09 (flawless) /Black=0.60} 1-0

[Event "4NCL 2022-2023"]
[Site "Daventry"]
[Date "2023.01.14"]
[Round "3.46"]
[White "Townsend, M Paul"]
[Black "McDonald, Neil"]
[Result "1/2-1/2"]
[ECO "A81"]
[WhiteElo "2161"]
[BlackElo "2409"]
[Annotator "TA"]
[PlyCount "93"]
[EventDate "2022.10.20"]
[EventType "team-tourn"]
[EventCountry "ENG"]
[SourceTitle "playchess.com"]
[Source "ChessBase"]
[SourceQuality "1"]
[TimeControl "40/6000+30:2400+30"]

{[%evp 10,93,27,41,33,15,15,10,11,10,20,11,14,0,0,0,0,0,0,9,7,0,0,0,6,0,9,-85,-93,-75,-107,-111,-123,-118,-48,-50,-44,-45,-46,-46,-50,-42,0,-7,0,0,0,0,0,0,0,0,0,0,0,0,0,0,0,0,0,0,0,0,0,0,0,0,0,0,0,0,0,0,0,0,0,0,0,0,0,0,0,0,0,0]} 1. d4 {[%emt 0:00:12]} f5 {[%emt 0:00:26]} 2. g3 {[%emt 0:00:19]} Nf6 {[%emt 0:00:10]} 3. Bg2 {[%emt 0:00:07]} g6 {[%emt 0:00:27]} 4. Nf3 {[%emt 0:00:26]} Bg7 {[%emt 0:00:11]} 5. O-O {[%emt 0:00:11]} O-O {[%emt 0:00:14]} 6. b3 {[%emt 0:00:36]} b6 {[%emt 0:00:43] A81: Dutch Defence: 2 g3.} 7. Bb2 {[%emt 0:02:46]} Bb7 {[%emt 0:00:25]} 8. c4 {[%emt 0:02:11]} e6 {[%emt 0:04:37]} 9. Nc3 {[%emt 0:05:49]} Na6 {[%emt 0:01:44][%cal Bb8a6,Ba6c5,Bc5b7,Bb7d6][%mdl 32]} 10. a3 {[%emt 0:12:19]} c5 {[%emt 0:07:16] [#]} 11. Qc2 $146 {[%emt 0:13:50]} ({Predecessor:} 11. d5 exd5 12. Nxd5 Nxd5 13. Bxg7 Kxg7 14. cxd5 Qf6 15. Nd2 Nc7 16. e4 Nb5 17. exf5 Qxf5 {0-1 Aditya,M (2454)-Maghsoodloo,P (2673) Sharjah Masters 3rd 2019 (9)}) 11... cxd4 {[%emt 0:06:19]} 12. Nxd4 {[%emt 0:00:50]} Bxg2 {[%emt 0:01:02]} 13. Kxg2 {[%emt 0:00:04]} Nc5 {[%emt 0:02:09]} 14. Rad1 {[%emt 0:24:52] Strongly threatening b4.} Qe7 {[%emt 0:05:26]} 15. Ndb5 {[%emt 0:07:22]} Rfc8 {[%emt 0:03:03]} 16. b4 {[%emt 0:03:38]} Nb7 {[%emt 0:05:21]} 17. Qd3 $1 {[%emt 0:02:51]} a6 {[%emt 0:03:27]} 18. Nd4 {[%emt 0:01:46]} (18. Na4 $1 $11 {remains equal.} axb5 {[%mdl 64] Discovered Attack} 19. Nxb6 bxc4 20. Bxf6 cxd3 21. Bxe7 dxe2 22. Nxa8 exd1=N 23. Rxd1 Rxa8 24. Rxd7) 18... Nd6 $17 {[%emt 0:03:17]} 19. c5 {[%emt 0:05:22]} bxc5 {[%emt 0:00:46]} 20. Nxe6 {[%emt 0:01:30][%mdl 64] Discovered Attack} cxb4 {[%emt 0:26:39][%mdl 64] Discovered Attack} 21. Nd5 {[%emt 0:09:36] [#]} Qxe6 {[%emt 0:07:18]} (21... Nxd5 $1 $17 22. Nxg7 Rc5 23. axb4 Rb5) 22. Bxf6 $15 {[%emt 0:01:03]} Bxf6 {[%emt 0:00:36]} 23. Nxf6+ {[%emt 0:00:22]} Qxf6 {[%emt 0:00:09]} 24. Qxd6 {[%emt 0:00:08]} Qxd6 {[%emt 0:01:15]} 25. Rxd6 $17 {[%emt 0:00:03][%mdl 4096] Endgame KRR-KRR} b3 {[%emt 0:03:46] [#] And now ...Rab8 would win.} (25... bxa3 $5 {[%cal Rc8c2]} 26. Ra1 Rc3 $15) 26. Rd3 {[%emt 0:05:00] The position is equal.} Rab8 {[%emt 0:04:00]} 27. Rb1 {[%emt 0:00:16]} Rc2 {[%emt 0:01:02]} (27... b2 $5 28. Rd2 $8 Rc3 $11) 28. Rbxb3 {[%emt 0:00:47]} Rxb3 {[%emt 0:00:07]} 29. Rxb3 {[%emt 0:00:05]} Rxe2 $11 {[%emt 0:00:11] KR-KR} 30. Rd3 {[%emt 0:02:33]} Ra2 {[%emt 0:00:12]} 31. Rxd7 {[%emt 0:03:04]} Rxa3 {[%emt 0:00:04]} 32. Rd8+ {[%emt 0:00:14]} Kg7 {[%emt 0:00:45]} 33. Rd7+ {[%emt 0:00:05]} Kh6 {[%emt 0:01:50]} 34. h4 {[%emt 0:00:54]} Ra2 {[%emt 0:03:05]} 35. Ra7 {[%emt 0:01:38]} a5 {[%emt 0:00:20][%cal Ba6a5,Ba5a4,Ba4a3,Ba3a2][%mdl 32]} 36. Kf3 {[%emt 0:00:31]} a4 {[%emt 0:00:25]} 37. Kg2 {[%emt 0:00:27]} a3 {[%emt 0:00:26]} 38. Kf3 {[%emt 0:02:01]} g5 {[%emt 0:05:25]} 39. hxg5+ {[%emt 0:01:17]} Kxg5 {[%emt 0:00:29]} 40. Rxh7 {[%emt 0:01:13]} Rb2 {[%emt 0:00:27]} 41. Ra7 {[%emt 0:40:55]} a2 {[%emt 0:43:46]} 42. Ra6 {[%emt 0:01:26]} Rc2 {[%emt 0:02:21]} 43. Kg2 {[%emt 0:00:00]} f4 {[%emt 0:00:00]} 44. Ra5+ {[%emt 0:00:00]} Kg4 {[%emt 0:00:00] ( -> ...f3+)} 45. Ra4 {[%emt 0:00:00]} Kh5 {[%emt 0:00:00]} 46. Ra5+ {[%emt 0:00:00]} Kg4 {[%emt 0:00:00] ...f3+ would be deadly.} 47. Ra4 {[%emt 0:00:00] Weighted Error Value: White=0.04 (flawless) /Black=0.05 (flawless)} 1/2-1/2

[Event "4NCL 2022-2023"]
[Site "Daventry"]
[Date "2023.01.14"]
[Round "3.47"]
[White "Toma, Katarzyna"]
[Black "Shaw, Peter"]
[Result "1-0"]
[ECO "B12"]
[WhiteElo "2232"]
[BlackElo "2069"]
[Annotator "TA"]
[PlyCount "99"]
[EventDate "2022.10.20"]
[EventType "team-tourn"]
[EventCountry "ENG"]
[SourceTitle "playchess.com"]
[Source "ChessBase"]
[SourceQuality "1"]
[TimeControl "40/6000+30:2400+30"]

{[%evp 9,99,11,18,6,10,8,26,22,27,0,0,0,0,8,2,5,24,0,30,16,22,22,28,42,55,38,87,74,136,132,140,118,110,121,154,147,146,148,197,149,209,208,197,180,173,119,135,129,236,154,319,188,210,139,131,129,130,135,311,182,284,278,277,274,357,360,356,308,421,450,462,446,410,235,360,344,412,415,427,368,632,576,813,815,791,800,796,766,5029,5014,5014,5014]} 1. e4 {[%emt 0:00:04]} c6 {[%emt 0:00:17]} 2. d4 {[%emt 0:01:26]} d5 {[%emt 0:00:07]} 3. e5 {[%emt 0:00:05]} Bf5 {[%emt 0:00:12]} 4. Nd2 {[%emt 0:01:11]} e6 {[%emt 0:01:34]} 5. Nb3 {[%emt 0:00:27]} Nd7 {[%emt 0:01:58]} 6. Be3 {[%emt 0:00:39] B12: Caro-Kann: Advance Variation.} Ne7 {[%emt 0:08:32]} 7. Nf3 {[%emt 0:07:54]} Nc8 {[%emt 0:04:43]} 8. Be2 {[%emt 0:04:10] White has an edge.} Be7 {[%emt 0:00:28]} 9. Nfd2 {[%emt 0:06:45]} O-O {[%emt 0:04:22]} 10. f4 {[%emt 0:01:55]} f6 {[%emt 0:03:22]} 11. O-O {[%emt 0:00:32]} fxe5 {[%emt 0:12:20] [#]} 12. fxe5 $146 {[%emt 0:00:05]} ({Predecessor:} 12. dxe5 c5 13. Kh1 Ncb6 14. a4 d4 15. Bg1 Nd5 16. Nc4 N7b6 17. a5 Nxc4 18. Bxc4 {½-½ Georgiadis,I (2491)-Antognini,F (2269) SUI-chT Switzerland 2015 (4.5)}) 12... Bg5 {[%emt 0:02:23]} 13. Bf2 {[%emt 0:00:56]} (13. Bxg5 {feels hotter.} Qxg5 14. Nf3 Qe3+ 15. Rf2) 13... Bh4 {[%emt 0:09:52]} 14. Nf3 {[%emt 0:01:42][%cal Bd2f3,Bf3h4,Bh4f5][%mdl 32]} Bxf2+ {[%emt 0:02:56]} 15. Rxf2 {[%emt 0:00:05]} Ne7 {[%emt 0:00:52]} 16. Qd2 {[%emt 0:06:41]} h6 {[%emt 0:03:41]} 17. Nh4 {[%emt 0:05:43]} Kh8 {[%emt 0:11:01]} (17... a5 $14 {is more appropriate.}) 18. Raf1 $16 {[%emt 0:05:00] White is more active.} b6 {[%emt 0:13:31] [#]} (18... Bh7 $142) 19. Nxf5 $1 {[%emt 0:03:30]} Rxf5 {[%emt 0:00:33]} 20. Rxf5 {[%emt 0:05:20]} Nxf5 {[%emt 0:04:09]} 21. Bg4 {[%emt 0:02:00]} Qf8 {[%emt 0:06:44]} 22. Bxf5 {[%emt 0:16:45]} exf5 {[%emt 0:00:07]} 23. Nc1 {[%emt 0:09:24]} Re8 {[%emt 0:06:01]} (23... Qf7 $16 {might work better.} 24. Ne2 Nf8) 24. Nd3 {[%emt 0:02:14]} (24. Ne2 $18) 24... g6 {[%emt 0:04:12]} (24... Qf7 $16) 25. g4 $18 {[%emt 0:06:52]} Qg7 {[%emt 0:00:28]} 26. gxf5 {[%emt 0:00:06]} gxf5+ {[%emt 0:00:05]} 27. Kh1 {[%emt 0:00:12]} ({White should play} 27. Kf2 $18) 27... Rg8 $16 {[%emt 0:02:15]} 28. Nf4 {[%emt 0:01:49]} (28. Rxf5 $2 Qg1#) 28... Kh7 {[%emt 0:02:35]} (28... Nf8 $16 29. Qe2 Qg4) 29. Qf2 {[%emt 0:01:52]} b5 $2 {[%emt 0:04:09]} (29... Qg4 $16 {was worth a try.} 30. h3 Qg3) 30. Nh5 {[%emt 0:01:09]} (30. Ne6 $142 Qg6 31. Qxf5) 30... Qg4 {[%emt 0:00:27]} 31. Qxf5+ {[%emt 0:00:21]} Qxf5 {[%emt 0:00:05]} 32. Rxf5 $18 {[%emt 0:00:08][%mdl 4096] Endgame KRN-KRN} Kg6 {[%emt 0:01:13]} 33. Ng3 {[%emt 0:00:06] Black must now prevent h4.} Rc8 $2 {[%emt 0:01:10] Loses the game.} (33... Rf8 $16 34. e6 Nf6) 34. Rf2 {[%emt 0:01:47]} (34. h4 $142) 34... c5 {[%emt 0:00:33]} (34... Rf8 {was called for.} 35. Rg2 Rf3 36. Ne4+ Kh7) 35. Nf5 {[%emt 0:01:20] [#] Ne7+ would be deadly.} Re8 {[%emt 0:00:19] Inhibits Ne7+.} 36. c3 {[%emt 0:01:00][%cal Bc2c3,Bc3d4][%mdl 32]} cxd4 {[%emt 0:00:32]} 37. cxd4 {[%emt 0:00:05]} b4 {[%emt 0:00:27]} 38. Ne3 {[%emt 0:02:48]} Nb6 {[%emt 0:00:33]} 39. Rf6+ {[%emt 0:00:30]} Kg5 {[%emt 0:00:26]} 40. Kg2 {[%emt 0:01:27] Strongly threatening Kg3.} Nc4 {[%emt 0:00:36]} 41. Nd1 {[%emt 0:45:12]} (41. Nxd5 $142 {Threatening mate with Kg3.} Nxe5 42. dxe5 Rxe5 43. Rd6) 41... Rc8 {[%emt 0:00:00]} (41... Nd2 $142 42. Ne3 Rd8 43. Rf5+ Kg6) 42. b3 {[%emt 0:00:00]} Nd2 {[%emt 0:00:00]} 43. Ne3 {[%emt 0:00:00][%cal Bd1e3,Be3d5,Bd5f4][%mdl 32]} Ne4 {[%emt 0:02:12]} 44. Rf7 {[%emt 0:00:00]} Rc3 $2 {[%emt 0:02:41]} (44... Kg6) 45. Rg7+ {[%emt 0:00:00] White is clearly winning.} Kh5 {[%emt 0:00:25]} 46. Nxd5 {[%emt 0:00:00]} Rc2+ {[%emt 0:00:21]} 47. Kf3 {[%emt 0:00:00] White wants to mate with Nf4+.} Ng5+ {[%emt 0:00:38]} 48. Ke3 {[%emt 0:00:00]} Rxa2 {[%emt 0:00:57]} 49. Nf4+ {[%emt 0:00:00]} Kh4 {[%emt 0:01:02]} 50. e6 {[%emt 0:00:00] Weighted Error Value: White=0.31/Black=0.44} 1-0